[Event "Maharashtra Challenge Matches 2023"]
[Site "Nagpur"]
[Date "2023.06.04"]
[Round "4.1"]
[White "Svidler, Peter"]
[Black "Vidit, Santosh Gujrathi"]
[Result "1/2-1/2"]
[Annotator "TA"]
[ECO "A20"]
[WhiteElo "2683"]
[BlackElo "2731"]
[PlyCount "73"]
[EventDate "2023.06.03"]
[EventType "match"]
[EventCountry "IND"]
[SourceTitle "playchess.com"]
[Source "ChessBase"]
[SourceQuality "1"]
[TimeControl "40/5400+30:1800+30"]

{[%evp 9,73,4,13,4,20,-6,-4,-4,0,-19,1,-16,0,-18,-20,-20,-16,-12,-11,-59,-35,-46,-51,-58,-38,-67,-80,-76,-88,-125,-57,-47,0,0,0,0,0,0,0,0,0,0,0,0,0,0,0,0,0,0,0,0,0,0,0,0,0,0,0,0,0,0,0,0,0,0]} 1. c4 {[%emt 0:00:03]} e5 {[%emt 0:01:10]} 2. g3 {[%emt 0:00:19]} Nf6 {[%emt 0:00:09]} 3. Bg2 {[%emt 0:00:07]} c6 {[%emt 0:00:10]} 4. d4 {[%emt 0:01:23]} e4 {[%emt 0:00:22]} 5. a3 {[%emt 0:03:07]} d5 {[%emt 0:00:27]} 6. Nc3 {[%emt 0:00:27] A20: English Opening: 1...e5.} Be7 {[%emt 0:01:43]} 7. f3 {[%emt 0:07:07]} exf3 {[%emt 0:00:20]} 8. Nxf3 O-O {[%emt 0:00:23]} 9. O-O {[%emt 0:01:02]} h6 {[%emt 0:00:55]} 10. Nh4 {[%emt 0:17:59]} dxc4 {[%emt 0:01:51] [#]} 11. Nf5 $146 {[%emt 0:00:50]} ({Predecessor:} 11. e4 Bg4 12. Bf3 Bh3 13. Bg2 Bg4 14. Qd2 Ne8 15. h3 Bh5 16. Qf2 Nd7 17. Be3 {0-1 Niemann,H (2642)-Esipenko,A (2714) Airthings Masters Prelim rapid 2022 (9)}) 11... Bxf5 {[%emt 0:24:24]} 12. Rxf5 {[%emt 0:00:38] [#]} c5 $1 {[%emt 0:15:38]} 13. d5 {[%emt 0:03:56]} (13. Bxb7 {looks sharper.} Qd7 14. Bxa8 Qxf5 15. e4) 13... Bd6 {[%emt 0:09:59]} 14. Nb5 {[%emt 0:00:25]} (14. Bf4 $11) 14... Re8 $1 $15 {[%emt 0:05:05]} 15. Nxd6 {[%emt 0:05:17]} Qxd6 {[%emt 0:00:07]} 16. Bf4 {[%emt 0:02:16]} Qb6 {[%emt 0:00:23]} (16... Qa6 $5 {[%cal Rb8d7]}) 17. d6 {[%emt 0:05:39][%cal Of5f6]} Nbd7 {[%emt 0:01:01]} (17... Qxb2 18. Rb1 Qc3 19. Bxb7 $16 (19. Rxc5 Nbd7 $11)) 18. Qd2 {[%emt 0:03:59][%cal Of4h6]} Re6 {[%emt 0:04:36] Threatens to win with ...g5.} 19. e4 {[%emt 0:04:43]} Rae8 {[%emt 0:08:36]} (19... Nxe4 $17 20. Bxe4 Rxe4 21. Bxh6 Re6 22. Bxg7 Kxg7) 20. e5 {[%emt 0:04:04]} Nxe5 {[%emt 0:00:21]} (20... c3 $15 {was preferrable.} 21. bxc3 (21. Qxc3 Ng4 $17) 21... Ng4) 21. Rxe5 {[%emt 0:02:31] The position is equal.} Rxe5 {[%emt 0:00:31]} 22. Bxe5 {[%emt 0:00:17]} Rxe5 {[%emt 0:00:08]} 23. d7 {[%emt 0:00:03]} Nxd7 {[%emt 0:15:35][%mdl 64] [#] Deflection} 24. Qxd7 {[%emt 0:00:15]} Qxb2 {[%emt 0:00:06]} 25. Rd1 {[%emt 0:00:10][%cal Og2e4] Be4! is the strong threat.} (25. Qxb7 Qd4+ 26. Kf1 Qxa1+) 25... Qxa3 {[%emt 0:02:19] Hoping for ...Qe3+.} 26. Qc8+ {[%emt 0:11:00]} (26. Bd5 $2 Qe3+ 27. Kh1 Qf2 $19) 26... Kh7 {[%emt 0:00:02] And now ...Qe3+ would win.} 27. Be4+ {[%emt 0:00:10][%mdl 64] Decoy, Back Rank} g6 $1 {[%emt 0:00:07] ( -> ...Qe3+)} 28. Qxb7 {[%emt 0:00:10]} Kg7 {[%emt 0:00:39] White must now prevent ...Qe3+.} (28... Qe3+ $2 29. Kf1 Kg7 30. Rd7 $18) 29. Rd7 {[%emt 0:00:36]} (29. Rf1 $5 Qe3+ $8 30. Rf2 Qe1+ 31. Rf1 Qe3+ 32. Rf2 Qe1+ 33. Rf1 Qe3+ $11) 29... Qa1+ $1 {[%emt 0:00:42]} (29... Qe3+ $2 30. Kf1 Kf6 31. Rxf7+ Kg5 32. h4+ Kg4 33. Rf4+ (33. Bxg6 $2 Qe1+ 34. Kg2 Re2+) 33... Kxg3 34. Rf3+ $18) 30. Kf2 {[%emt 0:07:31]} (30. Kg2 $5 Qa2+ $8 31. Kf3 $11) 30... Qa2+ {[%emt 0:00:06]} 31. Kf3 {[%emt 0:00:09] Active counter play!} c3 {[%emt 0:00:28]} (31... Qxh2 32. Rxf7+ Kg8 33. Rg7+ Kh8 34. Rh7+ Kg8 35. Qg7#) 32. Rd6 {[%emt 0:02:01]} Re6 {[%emt 0:02:36]} (32... Qxh2 {gets mated.} 33. Rxg6+ Kf8 34. Qb8+ Re8 35. Qd6+ (35. Qxa7 $2 Qh5+ 36. Rg4 c2 $19) 35... Re7 36. Rxh6 Qd2 37. Rh8+ Kg7 38. Rh7+ Kf8 39. Qf6) 33. Qd5 {[%emt 0:02:30] The board is on fire.} Rf6+ {[%emt 0:02:36]} 34. Rxf6 {[%emt 0:00:05]} Qxd5 {[%emt 0:00:07]} (34... Qxh2 $2 {is a self mate.} 35. Qxf7+ Kh8 36. Qf8+ Kh7 37. Bxg6#) 35. Bxd5 {[%emt 0:00:06]} c2 {[%emt 0:00:41]} 36. Rxf7+ {[%emt 0:00:04]} Kh8 {[%emt 0:00:04] ...h5 would be deadly.} 37. Rf8+ {[%emt 0:01:50] An interesting game.   Weighted Error Value: White=0.07 (flawless) /Black=0.07 (flawless)} (37. Rxa7 $2 {too greedy.} c1=Q 38. Be4 Qh1+ 39. Kf4 Qxh2 $19) 1/2-1/2

[Event "Maharashtra Challenge Matches 2023"]
[Site "Nagpur"]
[Date "2023.06.04"]
[Round "4.1"]
[White "Sadhwani, Raunak"]
[Black "Short, Nigel D"]
[Result "1/2-1/2"]
[Annotator "TA"]
[ECO "E04"]
[WhiteElo "2627"]
[BlackElo "2597"]
[PlyCount "78"]
[EventDate "2023.06.03"]
[EventType "match"]
[EventCountry "IND"]
[SourceTitle "playchess.com"]
[Source "ChessBase"]
[SourceQuality "1"]
[TimeControl "40/5400+30:1800+30"]

{[%evp 10,78,27,19,56,47,50,27,36,33,47,25,20,21,13,-32,0,-7,0,-19,0,0,63,43,80,80,88,89,93,53,120,0,0,0,0,0,0,3,5,5,47,22,31,28,48,20,33,10,32,32,39,36,49,44,44,40,44,33,50,44,39,29,41,8,12,0,0,0,0,0,0]} 1. d4 {[%emt 0:00:02]} Nf6 {[%emt 0:00:43]} 2. c4 {[%emt 0:00:10]} e6 {[%emt 0:00:21]} 3. Nf3 {[%emt 0:00:08]} d5 {[%emt 0:00:32]} 4. g3 {[%emt 0:00:04]} dxc4 {[%emt 0:03:20]} 5. Bg2 {[%emt 0:00:13]} Bd7 {[%emt 0:00:07]} 6. Ne5 {[%emt 0:00:44]} Nc6 {[%emt 0:00:12] E04: Open Catalan: 5 Nf3.} 7. Nxc4 {[%emt 0:08:49]} b5 {[%emt 0:00:37] [#]} 8. Nca3 $146 {[%emt 0:01:26]} (8. Ne5 $5 Nd5 9. O-O $14) ({Predecessor:} 8. Ne5 Nxe5 9. dxe5 Nd5 10. O-O Be7 11. a4 bxa4 12. Nc3 Nxc3 13. bxc3 Rb8 14. Rxa4 Bxa4 15. Qxa4+ {1-0 Halkias,S (2530)-Nabaty,T (2658) EU-chT 22nd Batumi 2019 (6.3)}) 8... Rb8 {[%emt 0:01:15] White has an edge.} 9. O-O {[%emt 0:00:30]} e5 {[%emt 0:03:32]} 10. dxe5 {[%emt 0:09:38]} Nxe5 {[%emt 0:00:19]} 11. Qd4 {[%emt 0:00:05]} Bd6 {[%emt 0:00:52]} 12. Qxa7 {[%emt 0:00:13]} O-O {[%emt 0:02:30]} 13. Nc2 {[%emt 0:00:34]} Re8 {[%emt 0:02:26]} 14. Qd4 $1 {[%emt 0:04:10]} Bg4 {[%emt 0:02:41]} 15. Qd1 {[%emt 0:21:16]} Bc5 {[%emt 0:06:13]} (15... b4 $11) 16. b4 $14 {[%emt 0:08:53]} Bb6 {[%emt 0:17:27]} 17. Qxd8 {[%emt 0:01:55]} Rbxd8 {[%emt 0:00:11]} 18. Nc3 {[%emt 0:00:11]} Nc4 {[%emt 0:01:48] Prevents Be3.} 19. Bc6 {[%emt 0:03:56]} Bxe2 {[%emt 0:07:23]} (19... Bd7 $14 20. Bxd7 Rxd7) 20. Re1 {[%emt 0:05:37]} ({White has to play} 20. Bxe8 $16 Bxf1 21. Bxb5) 20... Ne5 $1 $36 {[%emt 0:08:41][%mdl 2048] Black has the initiative.} 21. Rxe2 {[%emt 0:04:55]} Nxc6 {[%emt 0:00:15]} 22. Rxe8+ {[%emt 0:00:45]} Rxe8 {[%emt 0:02:21]} 23. Be3 {[%emt 0:00:45] Against Nd4} Bxe3 {[%emt 0:05:28]} 24. Nxe3 {[%emt 0:00:04]} Re5 {[%emt 0:00:29]} 25. a3 {[%emt 0:01:26]} Nd4 {[%emt 0:01:09]} 26. Rd1 {[%emt 0:04:53]} Ne6 {[%emt 0:00:09]} 27. h4 {[%emt 0:00:11]} h6 {[%emt 0:00:04]} 28. Kg2 {[%emt 0:01:13]} (28. Rd3 $5 {[%cal Rf2f4]} g5 29. f3 $14) 28... g5 {[%emt 0:00:13] [#]} 29. h5 $1 {[%emt 0:07:17]} g4 {[%emt 0:06:24]} 30. Ncd5 {[%emt 0:00:10]} Nxh5 {[%emt 0:03:47]} 31. Ne7+ {[%emt 0:04:05]} Kf8 {[%emt 0:00:12]} 32. N7f5 {[%emt 0:00:26]} (32. Nxg4 $2 {perishes.} Rg5 33. Nxh6 Kxe7 $19) 32... Nf6 {[%emt 0:08:59]} 33. Nxh6 {[%emt 0:00:21]} Rg5 {[%emt 0:00:06]} 34. Nhf5 {[%emt 0:01:53]} Rh5 {[%emt 0:01:00]} 35. Rc1 {[%emt 0:05:08]} Ke8 {[%emt 0:04:37]} 36. Rc6 {[%cal Oc6e6] Threatens to win with Rxe6+!} Kd7 {[%emt 0:00:15] The position is equal.} 37. Ra6 {[%emt 0:02:44]} Nd5 {[%emt 0:00:54][%mdl 64] [#] Deflection} 38. Nxd5 {[%emt 0:02:57] aiming for Nf6+.} Rxf5 {[%emt 0:00:09]} 39. Ne3 {[%emt 0:00:01][%csl LRf5,LRg4]} Rg5 {[%emt 0:00:11] Weighted Error Value: White=0.15 (very precise) /Black=0.12 (very precise)} 1/2-1/2

[Event "Maharashtra Challenge Matches 2023"]
[Site "Nagpur"]
[Date "2023.06.05"]
[Round "5.1"]
[White "Short, Nigel D"]
[Black "Sadhwani, Raunak"]
[Result "1/2-1/2"]
[Annotator "TA"]
[ECO "A05"]
[WhiteElo "2597"]
[BlackElo "2627"]
[PlyCount "51"]
[EventDate "2023.06.03"]
[EventType "match"]
[EventCountry "IND"]
[SourceTitle "playchess.com"]
[Source "ChessBase"]
[SourceQuality "1"]
[TimeControl "40/5400+30:1800+30"]

{[%evp 13,51,20,29,-16,-5,0,-4,-2,0,0,22,0,0,0,16,-11,31,0,-20,-22,48,44,42,0,3,17,15,33,25,0,0,0,59,58,65,61,69,51,54,35]} 1. Nf3 {[%emt 1:15:42]} Nf6 {[%emt 1:15:45]} 2. g3 {[%emt 0:00:23]} g6 {[%emt 0:00:22]} 3. Bg2 {[%emt 0:00:22]} Bg7 {[%emt 0:00:21]} 4. O-O {[%emt 0:00:22]} O-O {[%emt 0:00:23]} 5. c4 {[%emt 0:00:26]} Nc6 {[%emt 0:00:29]} 6. Nc3 {[%emt 0:00:45]} d5 {[%emt 0:00:33]} 7. cxd5 {[%emt 0:00:25]} Nxd5 {[%emt 0:00:22]} 8. a3 {[%emt 0:03:31] A16: English Opening: 1...Nf6 with ...d5.} a5 {[%emt 0:01:31]} 9. Nxd5 {[%emt 0:01:57]} (9. d4 {seems wilder.} e5 10. Nxd5 e4 11. Ne5) 9... Qxd5 {[%emt 0:00:23]} 10. d3 {[%emt 0:00:22] The position is equal.} a4 {[%emt 0:00:45]} 11. Rb1 {[%emt 0:00:33] [#]} Qh5 $146 {[%emt 0:00:51]} ({Predecessor:} 11... Rd8 12. Bf4 Qa5 13. b4 axb3 14. Qxb3 h6 15. Rfc1 g5 16. Be3 Qxa3 17. Qc2 Qa2 {½-½ Boyd,J (2145)-Marconi,R (2020) CAN-ch773 S email 2020}) 12. Bd2 {[%emt 0:00:54]} Be6 {[%emt 0:01:30]} 13. Bc3 {[%emt 0:00:27]} Bb3 {[%emt 0:00:28]} 14. Qd2 {[%emt 0:00:55]} e5 {[%emt 0:00:22]} 15. h3 {[%emt 0:00:39]} (15. Ng5 $14) 15... Qf5 $11 {[%emt 0:00:36]} 16. Qe3 {[%emt 0:01:13]} Bd5 {[%emt 0:01:10]} ({Black should play} 16... Qe6 $11) 17. Qc5 $1 $14 {[%emt 0:01:34]} Be6 {[%emt 0:02:10]} 18. Nh4 {[%emt 0:02:24]} Qh5 {[%emt 0:00:43]} 19. Bf3 {[%emt 0:00:29]} Qh6 {[%emt 0:00:21]} 20. Bxc6 {[%emt 0:00:43]} bxc6 {[%emt 0:00:23]} 21. Bxe5 {[%emt 0:00:24]} (21. Rfe1 $5 {[%cal Rc3e5]}) 21... Qh5 {[%emt 0:05:28]} 22. Nf3 {[%emt 0:01:38]} f6 {[%emt 0:00:30]} (22... Rfe8 $11) 23. Bd4 {[%emt 0:00:31] Qxh5 would be deadly. White is slightly better.} ({Much worse is} 23. Qxc6 Bxh3 24. Bc3 Bxf1 25. Rxf1 Rfe8 $11) 23... Qxc5 {[%emt 0:00:24]} 24. Bxc5 {[%emt 0:00:22]} Rfb8 {[%emt 0:00:21][%cal Oe6a2]} 25. Bd4 {[%emt 0:01:13]} Bxh3 {[%emt 0:00:28]} 26. Rfc1 {[%emt 0:00:22] Weighted Error Value: White=0.12 (very precise) /Black=0.16 (very precise)} 1/2-1/2

[Event "Maharashtra Challenge Matches 2023"]
[Site "Nagpur"]
[Date "2023.06.05"]
[Round "6.1"]
[White "Svidler, Peter"]
[Black "Vidit, Santosh Gujrathi"]
[Result "0-1"]
[Annotator "TA"]
[ECO "A29"]
[WhiteElo "2683"]
[BlackElo "2731"]
[PlyCount "66"]
[EventDate "2023.06.03"]
[EventType "match"]
[EventCountry "IND"]
[SourceTitle "playchess.com"]
[Source "ChessBase"]
[SourceQuality "1"]
[TimeControl "180+2"]

{[%evp 18,66,0,0,1,0,0,0,0,0,35,9,35,0,0,0,0,-40,0,0,12,0,0,0,0,0,454,430,419,9,114,94,68,63,39,47,51,61,56,56,44,56,531,507,526,500,420,-925,-929,-902,-854]} 1. c4 {[%emt 0:00:00]} Nf6 {[%emt 0:00:00]} 2. Nc3 {[%emt 0:00:00]} e5 {[%emt 0:00:00][%cal Be7e5,Be5e4][%mdl 32]} 3. Nf3 {[%emt 0:00:00]} Nc6 {[%emt 0:00:00]} 4. g3 {[%emt 0:00:00]} Bb4 {[%emt 0:00:00]} 5. Bg2 {[%emt 0:00:00]} O-O {[%emt 0:00:00]} 6. O-O {[%emt 0:00:00]} e4 {[%emt 0:00:00]} 7. Ng5 {[%emt 0:00:00]} Bxc3 {[%emt 0:00:00]} 8. bxc3 {[%emt 0:00:00]} Re8 {[%emt 0:00:00]} 9. f3 {[%emt 0:00:00]} exf3 {[%emt 0:00:00]} 10. Nxf3 {[%emt 0:00:00][%cal Bg5f3,Bf3h4,Bh4f5,Bf5h6][%mdl 32]} d5 {[%emt 0:00:00] A29: English Opening: Four Knights Variation with 4 g3.} 11. d4 {[%emt 0:00:00]} h6 {[%emt 0:00:00] Wards off Bg5} 12. Qc2 {[%emt 0:00:00]} dxc4 {[%emt 0:00:00] The position is equal.} 13. Bf4 {[%emt 0:00:00]} Bg4 {[%emt 0:00:00][%cal Bc8g4,Bg4h5,Bh5g6][%mdl 32]} 14. Rae1 $1 {[%emt 0:00:00]} Bh5 {[%emt 0:00:00] [#]} 15. Nh4 $146 {[%emt 0:00:00] Inhibits Bg6.} ({Predecessor:} 15. e4 Bg6 16. Nd2 Na5 17. Qa4 c5 18. e5 Nd7 19. Nxc4 Nxc4 20. Qxc4 cxd4 21. Bxb7 {1-0 Luis Vitalla,F (2086)-Palacios Latasa,E (2237) Aragon-chT Honor GrB 2017 (4.22)}) 15... g5 $1 {[%emt 0:00:00]} 16. Nf5 {[%emt 0:00:00]} gxf4 {[%emt 0:00:00]} 17. Nxh6+ {[%emt 0:00:00]} Kf8 {[%emt 0:00:00]} (17... Kg7 $15 18. Nf5+ Kf8 19. Rxf4 Ne7 20. Nxe7 {[%mdl 64] Remove Defender} Qxe7) 18. Rxf4 $11 {[%emt 0:00:00]} Bg6 {[%emt 0:00:00] Inhibits Qf5.} 19. Qd2 {[%emt 0:00:14] And now Ref1 would win.} Nd5 {[%emt 0:00:00]} 20. Bxd5 {[%emt 0:00:17]} Qxd5 {[%emt 0:00:00]} 21. e4 {[%emt 0:00:00]} Qd7 {[%emt 0:00:00][%mdl 8192]} (21... Rxe4 $11 22. Rfxe4 Bxe4) 22. Ref1 $18 {[%emt 0:00:00] [#] Nxf7 is the strong threat.} Nd8 {[%emt 0:00:41]} (22... Bxe4 $2 23. Rxf7+) 23. d5 $2 {[%emt 0:00:34]} ({White must play} 23. Rh4 $18 Qc6 24. Qg5) 23... Rxe4 {[%emt 0:00:43]} (23... Bxe4 $11 24. Rf5 (24. Qd4 $2 Qxd5 25. Qf6 Re6 $19) 24... Bxf5 25. Nxf5 Re6) 24. Rf6 $16 {[%emt 0:00:15]} Ke8 {[%emt 0:00:59] Threatens to win with ...Qe7.} 25. Qg5 $36 {[%emt 0:00:02][%mdl 2048] aiming for Rxg6. White has the initiative.} Qe7 {[%emt 0:00:20]} 26. Rxg6 $1 {[%emt 0:00:00]} fxg6 {[%emt 0:00:27]} 27. Qxg6+ {[%emt 0:00:00]} Kd7 {[%emt 0:00:00] Strongly threatening ...Qc5+.} 28. Ng8 $1 {[%emt 0:00:00][%mdl 1024] White has compensation.} Qc5+ {[%emt 0:00:00]} 29. Kh1 {[%emt 0:00:00]} Re5 {[%emt 0:00:15][%mdl 8192] [#]} (29... Qxd5 $2 30. Nf6+ Kc6 31. Nxd5+ Re6 32. Qg7 $18) ({Better is} 29... Re3 $1 $14 30. Nf6+ Kc8 31. Qf5+ (31. Qg4+ Ne6 $17) 31... Ne6) 30. Qg7+ $1 $18 {[%emt 0:00:06]} (30. Nf6+ Kc8 31. Qg4+ Ne6 32. dxe6 Qc6+ 33. Kg1 (33. Ne4 $2 b6 $19) 33... Qxe6 34. Qxe6+ (34. Qg7 $2 b5 $19) 34... Rxe6 $17) 30... Kd6 {[%emt 0:00:21]} 31. Qf6+ {[%emt 0:01:35]} Ne6 {[%emt 0:00:00]} 32. dxe6 {[%emt 0:00:00][%mdl 8192]} (32. Qe7+ $18 Kxd5 33. Qd7+ Qd6 34. Rd1+ Kc5 35. Rxd6) 32... Qd5+ $19 {[%emt 0:00:00]} ({And not} 32... Rxg8 33. e7+ Kd7 34. Rd1+ Rd5 35. Qf5+ Kc6 36. Qe6+ Qd6 37. e8=Q+ Rxe8 38. Qxe8+ (38. Rxd5 {gets mated.} Qxe6 39. Rh5 Qe1+ 40. Kg2 Qe2+ 41. Kh3 Qxh5+ 42. Kg2 Re2+ 43. Kg1 Qxh2+ 44. Kf1 Qg2#) 38... Kb6 39. Qe3+ (39. Rb1+ Ka5 $17) 39... c5 40. Rxd5 Qxd5+ 41. Kg1 $11) 33. Kg1 {[%emt 0:00:00]} Rxg8 {[%emt 0:00:00] A cool game by Vidit.   Weighted Error Value: White=0.29 (precise) /Black=0.55} 0-1

[Event "Maharashtra Challenge Matches 2023"]
[Site "Nagpur"]
[Date "2023.06.05"]
[Round "6.1"]
[White "Sadhwani, Raunak"]
[Black "Short, Nigel D"]
[Result "1-0"]
[Annotator "TA"]
[ECO "E17"]
[WhiteElo "2627"]
[BlackElo "2597"]
[PlyCount "87"]
[EventDate "2023.06.03"]
[EventType "match"]
[EventCountry "IND"]
[SourceTitle "playchess.com"]
[Source "ChessBase"]
[SourceQuality "1"]
[TimeControl "40/5400+30:1800+30"]

{[%evp 13,87,13,30,23,22,26,29,19,17,25,33,30,20,34,19,0,0,0,56,74,54,16,26,14,87,90,81,76,81,80,67,41,188,187,190,0,19,0,173,173,173,173,173,173,173,173,268,268,245,238,390,486,1044,1008,701,1159,1210,1139,914,902,1156,786,1290,964,1204,645,6832,6832,6832,1508,29968,29970,29974,29975,29971,29967]} 1. d4 {[%emt 1:15:41]} Nf6 {[%emt 1:15:42]} 2. c4 {[%emt 0:00:22]} e6 {[%emt 0:00:22]} 3. Nf3 {[%emt 0:00:23]} b6 {[%emt 0:00:22]} 4. g3 {[%emt 0:00:21]} Bb7 {[%emt 0:00:22]} 5. Bg2 {[%emt 0:00:22]} Be7 {[%emt 0:00:22]} 6. O-O {[%emt 0:00:22]} O-O {[%emt 0:00:22]} 7. Re1 {[%emt 0:00:21]} Na6 {[%emt 0:00:32]} 8. h4 {[%emt 0:00:22] E17: Queen's Indian: 4 g3 Bb7 5 Bg2 Be7.} d5 {[%emt 0:01:18]} 9. cxd5 {[%emt 0:00:21]} exd5 {[%emt 0:00:21]} 10. Bf4 {[%emt 0:00:27] White has an edge.} c5 {[%emt 0:00:28]} 11. Nc3 {[%emt 0:00:21]} Ne4 {[%emt 0:01:46]} 12. Rc1 {[%emt 0:01:39]} Nxc3 {[%emt 0:01:25]} 13. bxc3 {[%emt 0:00:59]} Nc7 {[%emt 0:00:28] [#]} 14. h5 $146 {[%emt 0:00:28]} ({Predecessor:} 14. e3 Ne6 15. Bf1 c4 16. a4 Re8 17. Bh3 Bf8 18. h5 h6 19. Bg2 Bd6 20. Qc2 {½-½ Moreto Quintana,A (2448)-Krzyzanowski,W (2474) W-ch42 sf03 email 2018}) 14... Ne6 {[%emt 0:00:28]} 15. e3 {[%emt 0:00:24]} g5 {[%emt 0:02:32]} (15... Re8 $11) 16. hxg6 $14 {[%emt 0:00:26]} hxg6 {[%emt 0:00:22]} 17. Bh3 {[%emt 0:00:46] Hoping for Bxe6.} Nxf4 {[%emt 0:01:17]} 18. exf4 {[%emt 0:00:22]} Bc8 {Against f5} (18... Kg7 $11 {keeps the balance.}) 19. Bxc8 $16 {[%emt 0:01:02]} Rxc8 {[%emt 0:00:42] [#]} 20. f5 $1 {[%emt 0:00:22] aiming for fxg6. White is more active.} cxd4 {[%emt 0:01:17]} (20... Bg5 21. Rb1) 21. fxg6 {[%emt 0:00:56]} fxg6 {[%emt 0:01:20]} (21... dxc3 $2 22. Ne5 fxg6 23. Nxg6 $18) 22. Ne5 {[%emt 0:01:01]} (22. Qd3 {simplifies} Qe8 23. cxd4 Rxc1 24. Rxc1 Bf6 25. Ne5) 22... Rf6 {[%emt 0:01:52]} (22... dxc3 $2 23. Nxg6 Bg5 24. Qh5 $18) (22... Rxc3 $2 23. Qg4 Bf6 24. Qxg6+ Bg7 25. Qe6+ Kh7 26. Nd7 $18) (22... Ba3 $1 $14 23. Rc2 Rxc3) 23. Qg4 $18 {[%emt 0:00:54]} (23. Qxd4 Bc5 24. Qg4 Bxf2+ 25. Kg2 Bxe1 26. Nxg6 Rc7 27. Rxe1 Rg7 $17) 23... Kg7 {[%emt 0:00:54]} (23... dxc3 $2 24. Nxg6 Bc5 25. Nf4+ (25. Rxc3 Bxf2+ 26. Kg2 Rxc3 $11) 25... Kh7 26. Kg2 $18) (23... Rxc3 $2 24. Rxc3 (24. Qxd4 Rxc1 25. Rxc1 Bc5 $15 {[%mdl 64] Skewer}) 24... dxc3 25. Nxg6 $18) 24. Qh3 $2 {[%emt 0:05:26]} (24. Qxd4 $2 Bc5 25. Qh4 Bxf2+ 26. Kg2 Bxe1 27. Rxe1 d4 $19) (24. cxd4 $18 Rc7 25. Qh3) 24... Rf5 {[%emt 0:02:33]} (24... Rxc3 $5 25. Kg2 (25. Ng4 Rd6 $11) 25... Qh8 $11) 25. Qg4 {[%emt 0:03:43]} (25. cxd4 $5 Bd6 26. Qg4 (26. Rxc8 Qxc8 27. Qg4 Bxe5 $14) 26... Bxe5 27. Rxc8 Qxc8 28. Rxe5 $14) 25... Rxe5 $2 {[%emt 0:01:23] Black is on the road to losing.} 26. Rxe5 {[%emt 0:00:26]} Bf6 {[%emt 0:00:22] [#]} 27. Rxd5 {[%emt 0:01:25][%mdl 576] Deflection} Qxd5 {[%emt 0:00:24]} 28. Qxc8 {[%emt 0:00:22]} dxc3 {[%emt 0:00:23][%mdl 4096] Endgame KQR-KQB} 29. Qc7+ {[%emt 0:00:22]} Kh6 {[%emt 0:01:31]} (29... Qf7 $142 30. Qxf7+ Kxf7) 30. Qf4+ $1 {[%emt 0:01:04]} (30. Qxa7 Bd4 31. Rf1 (31. Qe7 Bxf2+ {[%mdl 64] Double Attack} 32. Kh2 Bd4 $11) 31... Qf3 $11) 30... Kg7 {[%emt 0:00:58]} 31. Qa4 {[%emt 0:00:23]} Qb7 $2 {[%emt 0:02:19]} (31... Qd4 {was called for.} 32. Qxa7+ Kh6) 32. Rd1 $1 {[%emt 0:00:29] Strongly threatening Rd7+.} b5 {[%emt 0:00:22]} (32... Kh6 $142 33. Qg4 c2) 33. Qg4 {[%emt 0:00:22]} Qc6 {[%emt 0:00:51] [#]} 34. Qd7+ $1 {[%emt 0:00:42]} Qxd7 {[%emt 0:00:22]} 35. Rxd7+ {[%emt 0:00:21] KR-KB} Kf8 {[%emt 0:00:46]} 36. Rxa7 {[%emt 0:00:34]} (36. Rc7 Ke8 37. Rb7 (37. Rxa7 $2 Be5 $19) 37... Be7 $11) 36... Ke8 {[%emt 0:01:08] [#]} 37. Kf1 $1 {[%emt 0:01:42]} ({Wrong is} 37. Rc7 $2 Kd8 38. Rc5 Bd4 $19) 37... Bd4 {[%emt 0:00:26]} 38. Ra8+ {[%emt 0:00:22]} ({Not} 38. Rc7 $2 Kd8 $19) 38... Kd7 {[%emt 0:00:22]} 39. Ke2 {[%emt 0:00:21]} Bxf2 {[%emt 0:00:31]} 40. g4 {[%emt 0:00:21][%cal Bg3g4,Bg4g5][%mdl 32]} (40. Kxf2 $2 {perishes.} c2 41. Ra7+ Kc8 42. Ra8+ Kb7 $19) 40... Bg3 {[%emt 0:00:52]} 41. Kd3 {[%emt 0:30:23]} Be5 {[%emt 0:30:27]} 42. Rg8 {[%emt 0:00:28] White mates.} Ke6 {[%emt 0:00:22]} 43. Rxg6+ {[%emt 0:00:22]} Kd5 {[%emt 0:00:21]} 44. g5 {[%emt 0:00:25] Weighted Error Value: White=0.13 (very precise) /Black=0.57} 1-0